fUSD/lending_fUSD_20250606
["ID","MTS","AMOUNT","RATE_DAILY","PERIOD"]
[364718427,1749216684711,-480.0,0.00030493,7]
[364718428,1749216684725,-480.0,0.00030493,7]
[364718429,1749216684740,-480.0,0.00030493,7]
[364718430,1749216684755,-480.2276776,0.00030493,7]
[364718431,1749216684770,-480.0,0.00030493,7]
[364718432,1749216684785,-480.0,0.00030493,7]
[364718433,1749216684799,-480.0,0.00030493,7]
[364718434,1749216684814,-480.0,0.00030493,7]
[364718435,1749216684829,-480.0,0.00030493,7]
[364718436,1749216684843,-480.0,0.00030493,7]
[364718437,1749216684862,-480.0,0.00030493,7]
[364718438,1749216684876,-499.23357579,0.00030493,7]
[364718439,1749216684892,-480.0,0.00030493,7]
[364718440,1749216684907,-480.0,0.00030493,7]
[364718441,1749216684922,-480.0,0.00030493,7]
[364718442,1749216684936,-480.0,0.00030493,7]
[364718443,1749216684953,-743.92,0.00030493,7]
[364718444,1749216684968,-480.0,0.00030493,7]
[364718445,1749216684982,-480.0,0.00030493,7]
[364718446,1749216684998,-458.49969352,0.00030493,7]
[364718447,1749216685012,-480.0,0.00030493,7]
[364718448,1749216685026,-480.0,0.00030493,7]
[364718449,1749216685042,-745.16,0.00030493,7]
[364718450,1749216685056,-894.02,0.00030493,7]
[364718451,1749216685070,-480.0,0.00030493,7]
[364718452,1749216685084,-480.0,0.00030493,7]
[364718453,1749216685099,-669.26,0.00030493,7]
[364718454,1749216685115,-524.59,0.00030493,7]
[364718455,1749216685129,-480.0,0.00030493,7]
[364718456,1749216685145,-1239.07,0.00030493,7]
[364718457,1749216685161,-480.0,0.00030493,7]
[364718458,1749216685176,-1307.14,0.00030493,7]
[364718459,1749216685191,-480.0,0.00030493,7]
[364718460,1749216685207,-480.0,0.00030493,7]
[364718461,1749216685222,-480.0,0.00030493,7]
[364718462,1749216685237,-847.72,0.00030493,7]
[364718463,1749216685252,-549.84,0.00030493,7]
[364718464,1749216685267,-480.0,0.00030493,7]
[364718465,1749216685282,-480.0,0.00030493,7]
[364718466,1749216685296,-524.18,0.00030493,7]
[364718467,1749216685312,-480.0,0.00030493,7]
[364718468,1749216685326,-599.16652941,0.00030493,7]
[364718469,1749216685341,-480.0,0.00030493,7]
[364718470,1749216685356,-739.49,0.00030493,7]
[364718471,1749216685371,-762.81,0.00030493,7]
[364718472,1749216685386,-480.0,0.00030493,7]
[364718473,1749216685417,-480.0,0.00030493,7]
[364718474,1749216685440,-673.29,0.00030493,7]
[364718475,1749216685460,-480.0,0.00030493,7]
[364718476,1749216685481,-1068.27,0.00030493,7]
[364718477,1749216685499,-480.0,0.00030493,7]
[364718478,1749216685518,-480.0,0.00030493,7]
[364718479,1749216685536,-480.0,0.00030493,7]
[364718480,1749216685553,-1007.34,0.00030493,7]
[364718481,1749216685569,-480.0,0.00030493,7]
[364718482,1749216685586,-480.0,0.00030493,7]
[364718483,1749216685601,-480.0,0.00030493,7]
[364718484,1749216685617,-480.0,0.00030493,7]
[364718485,1749216685632,-709.28,0.00030493,7]
[364718486,1749216685650,-480.0,0.00030493,7]
[364718487,1749216685667,-859.59,0.00030493,7]
[364718488,1749216685677,-568.13,0.00030493,7]
[364718489,1749216685687,-480.0,0.00030493,7]
[364718490,1749216685697,-549.99,0.00030493,7]
[364718491,1749216685707,-480.0,0.00030493,7]
[364718492,1749216685717,-480.0,0.00030493,7]
[364718493,1749216685726,-480.0,0.00030493,7]
[364718494,1749216685736,-480.0,0.00030493,7]
[364718495,1749216685746,-480.0,0.00030493,7]
[364718496,1749216686076,-485.14,0.00030493,7]
[364718497,1749216686097,-480.0,0.00030493,7]
[364718498,1749216686107,-480.0,0.00030493,7]
[364718499,1749216686116,-480.0,0.00030493,7]
[364718500,1749216686126,-971.05,0.00030493,7]
[364718501,1749216686136,-480.0,0.00030493,7]
[364718502,1749216686146,-785.73,0.00030493,7]
[364718503,1749216686157,-480.0,0.00030493,7]
[364718504,1749216686166,-963.98,0.00030493,7]
[364718505,1749216686175,-480.0,0.00030493,7]
[364718506,1749216686185,-532.43,0.00030493,7]
[364718507,1749216686194,-480.0,0.00030493,7]
[364718508,1749216686204,-502.34256146,0.00030493,7]
[364718509,1749216686214,-480.0,0.00030493,7]
[364718510,1749216686223,-480.0,0.00030493,7]
[364718511,1749216686232,-480.0,0.00030493,7]
[364718512,1749216686242,-480.0,0.00030493,7]
[364718513,1749216686251,-480.0,0.00030493,7]
[364718514,1749216686261,-480.0,0.00030493,7]
[364718515,1749216686270,-480.0,0.00030493,7]
[364718516,1749216686279,-480.0,0.00030493,7]
[364718517,1749216686289,-480.0,0.00030493,7]
[364718518,1749216686298,-480.0,0.00030493,7]
[364718519,1749216686308,-480.0,0.00030493,7]
[364718520,1749216686317,-480.0,0.00030493,7]
[364718521,1749216686327,-480.0,0.00030493,7]
[364718522,1749216686337,-480.0,0.00030493,7]
[364718523,1749216686346,-480.0,0.00030493,7]
[364718524,1749216686356,-480.0,0.00030493,7]
[364718525,1749216686366,-480.0,0.00030493,7]
[364718526,1749216686375,-437.22054667,0.00030493,7]
[364718527,1749216686385,-736.88,0.00030493,30]
[364718528,1749216686394,-480.0,0.00030493,7]
[364718529,1749216686404,-480.0,0.00030493,7]
[364718530,1749216686415,-211.33821141,0.00030493,7]
[364718531,1749216686425,-480.0,0.00030493,7]
[364718532,1749216686435,-480.0,0.00030493,7]
[364718533,1749216686444,-480.0,0.00030493,7]
[364718534,1749216686455,-480.0,0.00030493,7]
[364718535,1749216686464,-480.0,0.00030493,7]
[364718536,1749216686474,-480.0,0.00030493,7]
[364718537,1749216686484,-978.04,0.00030493,7]
[364718538,1749216686493,-480.0,0.00030493,7]
[364718539,1749216686503,-480.0,0.00030493,7]
[364718540,1749216686512,-480.0,0.00030493,7]
[364718541,1749216686522,-480.0,0.00030493,7]
[364718542,1749216686532,-480.0,0.00030493,7]
[364718543,1749216686542,-480.0,0.00030493,7]
[364718544,1749216686551,-480.0,0.00030493,7]
[364718545,1749216686561,-480.0,0.00030493,7]
[364718546,1749216686571,-1355.84,0.00030493,7]
[364718547,1749216686580,-487.04689667,0.00030493,7]
[364718548,1749216686589,-480.0,0.00030493,7]
[364718549,1749216686599,-2971.82,0.00030493,7]
[364718550,1749216686609,-162.01906958,0.00030493,7]
[364718551,1749216686619,-1464.18,0.00030493,7]
[364718552,1749216686629,-480.0,0.00030493,7]
[364718553,1749216686638,-480.0,0.00030493,7]
[364718554,1749216686647,-480.0,0.00030493,7]
[364718555,1749216686657,-480.0,0.00030493,7]
[364718556,1749216686667,-1535.9,0.00030493,7]
[364718557,1749216686676,-480.0,0.00030493,7]
[364718558,1749216686686,-797.28,0.00030493,7]
[364718559,1749216686696,-480.0,0.00030493,7]
[364718560,1749216686706,-480.0,0.00030493,7]
[364718561,1749216686716,-480.0,0.00030493,7]
[364718562,1749216686726,-579.89,0.00030493,7]
[364718563,1749216686735,-480.0,0.00030493,7]
[364718564,1749216686744,-480.0,0.00030493,7]
[364718565,1749216686754,-1950.06,0.00030493,7]
[364718566,1749216686764,-677.73,0.00030493,7]
[364718567,1749216686773,-367.04837545,0.00030493,7]
[364718568,1749216686783,-480.0,0.00030493,7]
[364718569,1749216686793,-480.0,0.00030493,7]
[364718570,1749216686804,-480.0,0.00030493,7]
[364718571,1749216686814,-460.0,0.00030493,7]
[364718572,1749216686824,-842.74,0.00030493,7]
[364718573,1749216686834,-480.0,0.00030493,7]
[364718574,1749216686844,-467.00093178,0.00030493,7]
[364718575,1749216686854,-970.12,0.00030493,7]
[364718576,1749216686864,-480.0,0.00030493,7]
[364718577,1749216686874,-460.0,0.00030493,7]
[364718578,1749216686883,-480.0,0.00030493,7]
[364718579,1749216686893,-480.0,0.00030493,7]
[364718580,1749216686902,-480.0,0.00030493,7]
[364718581,1749216686913,-480.0,0.00030493,7]
[364718582,1749216686923,-480.0,0.00030493,7]
[364718583,1749216686933,-1572.04,0.00030493,7]
[364718584,1749216686943,-480.0,0.00030493,7]
[364718585,1749216686954,-480.0,0.00030493,7]
[364718586,1749216686965,-824.22,0.00030493,7]
[364718587,1749216686975,-480.0,0.00030493,7]
[364718588,1749216686986,-785.47,0.00030493,7]
[364718589,1749216686997,-480.0,0.00030493,7]
[364718590,1749216687007,-1153.85,0.00030493,7]
[364718591,1749216687017,-480.0,0.00030493,7]
[364718592,1749216687028,-480.0,0.00030493,7]
[364718593,1749216687039,-1094.4,0.00030493,7]
[364718594,1749216687049,-409.09319824,0.00030493,7]
[364718595,1749216687059,-1045.42,0.00030493,7]
[364718596,1749216687069,-1955.08,0.00030493,7]
[364718597,1749216687080,-460.00088065,0.00030493,7]
[364718598,1749216687090,-480.0,0.00030493,7]
[364718599,1749216687100,-480.0,0.00030493,7]
[364718600,1749216687109,-531.12,0.00030493,7]
[364718601,1749216687120,-1702.68,0.00030493,7]
[364718602,1749216687131,-480.0,0.00030493,7]
[364718603,1749216687140,-569.14945896,0.00030493,7]
[364718604,1749216687149,-480.0,0.00030493,7]
[364718605,1749216687159,-480.0,0.00030493,7]
[364718606,1749216687168,-752.28,0.00030493,7]
[364718607,1749216687178,-2086.04,0.00030493,7]
[364718608,1749216687188,-958.88,0.00030493,7]
[364718609,1749216687197,-480.0,0.00030493,7]
[364718610,1749216687207,-846.14,0.00030493,7]
[364718611,1749216687216,-480.0,0.00030493,7]
[364718612,1749216687225,-480.0,0.00030493,7]
[364718613,1749216687234,-553.06,0.00030493,7]
[364718614,1749216687244,-480.0,0.00030493,7]
[364718615,1749216687253,-480.0,0.00030493,7]
[364718616,1749216687262,-576.18,0.00030493,7]
[364718617,1749216687272,-1316.2,0.00030493,7]
[364718618,1749216687282,-460.0,0.00030493,7]
[364718619,1749216687292,-480.0,0.00030493,7]
[364718620,1749216687301,-480.0,0.00030493,7]
[364718621,1749216687310,-480.0,0.00030493,7]
[364718622,1749216687320,-480.0,0.00030493,7]
[364718623,1749216687329,-1676.01,0.00030493,7]
[364718624,1749216687338,-1003.74,0.00030493,7]
[364718625,1749216687348,-601.8279368,0.00030493,7]
[364718626,1749216687358,-558.51025321,0.00030493,7]
[364718627,1749216687367,-493.6,0.00030493,7]
[364718628,1749216687377,-610.0637988,0.00030493,10]
[364718629,1749216687386,-480.0,0.00030493,7]
[364718630,1749216687396,-480.0,0.00030493,7]
[364718631,1749216687408,-663.77,0.00030493,7]
[364718632,1749216687418,-730.96,0.00030493,7]
[364718633,1749216687428,-480.0,0.00030493,7]
[364718634,1749216687438,-1464.3,0.00030493,7]
[364718635,1749216687448,-480.0,0.00030493,7]
[364718636,1749216687457,-480.0,0.00030493,7]
[364718637,1749216687467,-1101.01,0.00030493,7]
[364718638,1749216687476,-534.97,0.00030493,7]
[364718639,1749216687486,-860.81,0.00030493,7]
[364718640,1749216687495,-1376.85,0.00030493,7]
[364718641,1749216687505,-480.0,0.00030493,7]
[364718642,1749216687515,-480.0,0.00030493,7]
[364718643,1749216687525,-480.0,0.00030493,7]
[364718644,1749216687534,-480.0,0.00030493,7]
[364718645,1749216687544,-480.0,0.00030493,7]
[364718646,1749216687554,-480.0,0.00030493,7]
[364718647,1749216687564,-480.0,0.00030493,7]
[364718648,1749216687574,-480.0,0.00030493,7]
[364718649,1749216687584,-480.0,0.00030493,7]
[364718650,1749216687594,-207.2535787,0.00030493,7]
[364718651,1749216687608,-480.0,0.00030493,7]
[364718652,1749216687618,-480.0,0.00030493,7]
[364718653,1749216687628,-480.0,0.00030493,7]
[364718654,1749216687639,-480.0,0.00030493,7]
[364718655,1749216687649,-480.0,0.00030493,7]
[364718656,1749216687660,-480.0,0.00030493,7]
[364718657,1749216687671,-1014.75,0.00030493,7]
[364718658,1749216687681,-480.0,0.00030493,7]
[364718659,1749216687691,-934.11,0.00030493,7]
[364718660,1749216687701,-480.0,0.00030493,7]
[364718661,1749216687712,-413.21713935,0.00030493,7]
[364718662,1749216687722,-264.8104788,0.00030493,7]
[364718663,1749216687732,-480.0,0.00030493,7]
[364718664,1749216687742,-830.42,0.00030493,7]
[364718665,1749216687752,-480.0,0.00030493,7]
[364718666,1749216687762,-582.39738465,0.00030493,7]
[364718667,1749216687772,-480.0,0.00030493,7]
[364718668,1749216687782,-480.0,0.00030493,7]
[364718669,1749216687792,-1269.74,0.00030493,7]
[364718670,1749216687802,-1569.65,0.00030493,7]
[364718671,1749216687812,-490.9305301,0.00030493,7]
[364718672,1749216687822,-480.0,0.00030493,7]
[364718673,1749216687832,-1346.15,0.00030493,7]
[364718674,1749216687841,-651.74,0.00030493,7]
[364718675,1749216687852,-1654.69,0.00030493,7]
[364718676,1749216687861,-624.01,0.00030493,7]
[364718677,1749216687872,-557.37242719,0.00030493,7]
[364718678,1749216687882,-480.0,0.00030493,7]
[364718679,1749216687892,-1486.28,0.00030493,7]
[364718680,1749216687902,-480.0,0.00030493,7]
[364718681,1749216687912,-480.0,0.00030493,7]
[364718682,1749216687922,-1000.0,0.00030493,7]
[364718683,1749216687932,-458.60142033,0.00030493,7]
[364718684,1749216687942,-480.0,0.00030493,7]
[364718685,1749216687952,-480.0,0.00030493,7]
[364718686,1749216687965,-2343.22,0.00030493,7]
[364718687,1749216687975,-600.0,0.00030493,2]
[364718688,1749216687985,-480.0,0.00030493,7]
[364718689,1749216687995,-480.0,0.00030493,7]
[364718690,1749216688005,-1526.78,0.00030493,7]
[364718691,1749216688015,-1330.96,0.00030493,7]
[364718692,1749216688024,-704.74,0.00030493,7]
[364718693,1749216688035,-480.0,0.00030493,7]
[364718694,1749216688045,-2090.11,0.00030493,7]
[364718695,1749216688055,-480.0,0.00030493,7]
[364718696,1749216688064,-1201.26,0.00030493,7]
[364718697,1749216688074,-1295.3,0.00030493,7]
[364718698,1749216688084,-1377.59,0.00030493,7]
[364718699,1749216688094,-3234.51,0.00030493,7]
[364718700,1749216688104,-1563.6,0.00030493,7]
[364718701,1749216688114,-2579.4,0.00030493,7]
[364718702,1749216688125,-480.0,0.00030493,7]
[364718703,1749216688135,-915.36,0.00030493,7]
[364718704,1749216688144,-480.0,0.00030493,7]
[364718705,1749216688155,-1297.14,0.00030493,7]
[364718706,1749216688165,-1291.65,0.00030493,7]
[364718707,1749216688175,-18603.13,0.00030493,7]
[364718708,1749216688185,-2264.06,0.00030493,7]
[364718709,1749216688195,-480.0,0.00030493,7]
[364718710,1749216688207,-480.0,0.00030493,7]
[364718711,1749216688217,-966.4,0.00030493,7]
[364718712,1749216688228,-2213.09,0.00030493,7]
[364718713,1749216688238,-522.87,0.00030493,7]
[364718714,1749216688248,-421.80531945,0.00030493,7]
[364718715,1749216688257,-830.85,0.00030493,7]
[364718716,1749216688267,-480.0,0.00030493,7]
[364718717,1749216688277,-523.65,0.00030493,7]
[364718718,1749216688287,-3911.63,0.00030493,7]
[364718719,1749216688296,-6350.95,0.00030493,7]
[364718720,1749216688308,-849.1,0.00030493,7]
[364718721,1749216688318,-894.88,0.00030493,7]
[364718722,1749216688329,-1209.05,0.00030493,7]
[364718723,1749216688338,-1971.31,0.00030493,7]
[364718724,1749216688348,-865.39,0.00030493,7]
[364718725,1749216688358,-1294.83,0.00030493,7]
[364718726,1749216688368,-1139.41,0.00030493,7]
[364718727,1749216688378,-2377.0,0.00030493,7]
[364718728,1749216688388,-536.58,0.00030493,7]
[364718729,1749216688398,-899.14,0.00030493,7]
[364718730,1749216688410,-480.0,0.00030493,7]
[364718731,1749216688420,-79844.97,0.00030493,7]
[364718732,1749216688430,-2745.52,0.00030493,7]
[364718733,1749216688440,-7740.07,0.00030493,7]
[364718734,1749216688450,-12311.24,0.00030493,7]
[364718735,1749216688459,-769.44,0.00030493,7]
[364718736,1749216688469,-986.46,0.00030493,7]
[364718737,1749216688478,-480.0,0.00030493,7]
[364718738,1749216688488,-792.59,0.00030493,7]
[364718739,1749216688498,-900.27,0.00030493,7]
[364718740,1749216688507,-480.0,0.00030493,7]
[364718741,1749216688516,-2518.85,0.00030493,7]
[364718742,1749216688526,-480.0,0.00030493,7]
[364718743,1749216688535,-4370.26,0.00030493,7]
[364718744,1749216688545,-2420.94,0.00030493,7]
[364718745,1749216688554,-1164.02,0.00030493,7]
[364718746,1749216688563,-1124.83,0.00030493,7]
[364718747,1749216688573,-852.51,0.00030493,7]
[364718748,1749216688582,-480.0,0.00030493,7]
[364718749,1749216688592,-614.49,0.00030493,7]
[364718750,1749216688601,-14517.15,0.00030493,7]
[364718751,1749216688611,-635.8,0.00030493,7]
[364718752,1749216688620,-480.0,0.00030493,2]
[364718753,1749216688629,-6893.08,0.00030493,7]
[364718754,1749216688639,-480.0,0.00030493,7]
[364718755,1749216688648,-480.0,0.00030493,7]
[364718756,1749216688658,-480.0,0.00030493,7]
[364718757,1749216688668,-1369.51,0.00030493,7]
[364718758,1749216688678,-1971.66,0.00030493,7]
[364718759,1749216688687,-1883.03,0.00030493,7]
[364718760,1749216688696,-2086.58,0.00030493,7]
[364718761,1749216688705,-4303.64,0.00030493,7]
[364718762,1749216688714,-480.0,0.00030493,7]
[364718763,1749216688723,-1543.95,0.00030493,7]
[364718764,1749216688733,-480.0,0.00030493,7]
[364718765,1749216688742,-480.0,0.00030493,7]
[364718766,1749216688751,-628.47,0.00030493,7]
[364718767,1749216688761,-367.53371214,0.00030493,7]
[364718768,1749216688771,-2300.93,0.00030493,7]
[364718769,1749216688780,-609.79,0.00030493,7]
[364718770,1749216688789,-66.31992601,0.00030493,7]
[364718771,1749216689635,-413.68007399,0.00030493,7]
[364718772,1749216689645,-113.56363561,0.00030493,7]
[364718773,1749216689656,-1562.06636439,0.00030493,7]
[364718774,1749216689666,-480.0,0.00030493,7]
[364718775,1749216689675,-650.21,0.00030493,7]
[364718776,1749216689684,-1214.1,0.00030493,7]
[364718777,1749216689694,-480.0,0.00030493,7]
[364718778,1749216689703,-698.65500466,0.00030493,7]
[364718779,1749216689714,-553.08050001,0.00030493,7]
[364718780,1749216689726,-3519.81449533,0.00030493,7]
[364718781,1749216689735,-274.39846267,0.00030493,7]
[364718782,1749216722371,300.0,0.00025585,120]
[364718783,1749216763665,7673.78,0.00035616,120]
[364718784,1749216845219,1000.0,0.00035616,120]
[364718786,1749217235601,250.0,0.00019,2]
[364718787,1749217340461,155.19,0.00028963,120]
[364718788,1749217368826,200.0,0.00035616,120]
[364718791,1749217519654,151.27,0.00013699,2]
[364718797,1749217579978,-151.0,0.00020883,2]
[364718879,1749217721106,500.0,0.000356,120]
[364718881,1749217732067,500.0,0.000356,120]
[364718882,1749217741080,566.0,0.000356,120]
[364718883,1749217755480,500.0,0.000356,120]
[364718884,1749217767948,500.0,0.000356,120]
[364718885,1749217778172,500.0,0.000356,120]
[364718889,1749217790902,500.0,0.000356,120]
[364718891,1749217800836,500.0,0.000356,120]
[364718892,1749217811726,500.0,0.000356,120]
[364718893,1749217832353,-3921.09149067,0.00020149,2]
[364718894,1749217832366,-303.37372033,0.00020883,2]
[364718895,1749217832376,-300.0,0.00021,2]
[364718896,1749217832386,-151.27,0.00022505,2]
[364718897,1749217832396,-250.0,0.00025585,2]
[364718898,1749217832405,-203.0,0.00026553,2]
[364718899,1749217832414,-587.46,0.00027008,2]
[364718900,1749217832424,-1000.0,0.00028761,2]
[364718901,1749217832434,-222.0,0.00029,14]
[364718902,1749217832443,-500.0,0.00029015,2]
[364718903,1749217832452,-1000.0,0.00029091,2]
[364718904,1749217832463,-587.46,0.00029272,2]
[364718905,1749217832472,-152.0,0.00029462,3]
[364718906,1749217832481,-1200.0,0.00029481,2]
[364718907,1749217832492,-1957.856,0.00029482,2]
[364718908,1749217832503,-207.4,0.00029482,2]
[364718909,1749217832513,-300.0,0.00029499,2]
[364718910,1749217832522,-889.90131538,0.000295,2]
[364718911,1749217832534,-2190.92868462,0.000295,2]
[364718912,1749217832543,-3080.83,0.000295,2]
[364718913,1749217832552,-1114.52798805,0.00029537,2]
[364718914,1749217832563,-915.76868395,0.00029537,2]
[364718915,1749217832573,-615.321602,0.00029578,6]
[364718916,1749217832584,-1915.47614629,0.00029592,2]
[364718917,1749217832596,-189.94150257,0.00029592,2]
[364718918,1749217832605,-1000.0,0.000296,2]
[364718919,1749217832615,-2451.39293233,0.000296,2]
[364718920,1749217832630,-616.45002,0.000296,2]
[364718921,1749217832641,-12.98704767,0.000296,2]
[364718922,1749217832650,-1427.41272273,0.00029647,2]
[364718923,1749217832682,-55.0532799,0.00029647,2]
[364718924,1749217832693,-530.89572595,0.00029647,2]
[364718925,1749217832705,-169.95637329,0.00029647,2]
[364718926,1749217832715,-141.91362671,0.000297,2]
[364718927,1749217832726,-2938.91637329,0.000297,2]
[364718928,1749217832737,-623.82080352,0.00029702,2]
[364718929,1749217832747,-151.0,0.00029785,2]
[364718930,1749217832756,-500.0,0.00029785,2]
[364718931,1749217832766,-186.32160522,0.00029785,2]
[364718932,1749217832775,-300.0,0.00029785,2]
[364718933,1749217832785,-16201.00897207,0.00029803,2]
[364719104,1749217838598,-7234.48007199,0.00029803,2]
[364719106,1749217838622,-401.50997972,0.00029803,2]
[364719109,1749217838643,-1043.96,0.00029803,2]
[364719113,1749217838666,-664.18,0.00029803,2]
[364719436,1749217841052,-17538.85947622,0.00029803,2]
[364719439,1749217841061,-3080.83,0.000299,2]
[364719442,1749217841070,-347.6783732,0.000299,21]
[364719445,1749217841079,-1000.0,0.00029999,15]
[364719447,1749217841091,-1000.0,0.00029999,15]
[364719450,1749217841101,-468.58740865,0.00029999,15]
[364719453,1749217841110,-150.0,0.00029999,2]
[364719456,1749217841120,-458.15872968,0.0003,2]
[364719459,1749217841129,-157.85163,0.0003,2]
[364719463,1749217841139,-551.865777,0.0003,10]
[364719468,1749217841158,-18543.304223,0.0003,10]
[364719471,1749217841167,-4758.84648388,0.00030015,2]
[364719474,1749217841176,-150.0,0.00030015,7]
[364719476,1749217841185,-151.0,0.00030023,7]
[364719479,1749217841194,-151.0,0.00030023,7]
[364719482,1749217841203,-151.0,0.00030023,7]
[364719485,1749217841213,-150.0,0.00030027,7]
[364719487,1749217841222,-151.0,0.00030035,7]
[364719490,1749217841231,-151.0,0.00030035,7]
[364719493,1749217841240,-151.0,0.00030035,7]
[364719496,1749217841250,-151.0,0.00030036,7]
[364719499,1749217841259,-280.632394,0.00030036,7]
[364719502,1749217841268,-150.0,0.00030036,7]
[364719505,1749217841278,-490.41689912,0.00030043,2]
[364719510,1749217841295,-4949.61045701,0.00030043,2]
[364719517,1749217841322,-30618.91864387,0.00030043,2]
[364719520,1749217841331,-1000.0,0.00030043,2]
[364719523,1749217841344,-150.0,0.00030053,7]
[364719526,1749217841354,-1000.0,0.00030053,2]
[364719529,1749217841367,-614.4754714,0.00030054,21]
[364719532,1749217841377,-165.82970913,0.00030054,2]
[364719535,1749217841387,-178.85431643,0.00030054,2]
[364719538,1749217841397,-2500.0,0.00030054,2]
[364719541,1749217841407,-500.0,0.00030063,2]
[364719544,1749217841416,-258.17716134,0.00030064,2]
[364719548,1749217841426,-165.82970913,0.00030064,2]
[364719550,1749217841435,-5000.0,0.00030064,2]
[364719554,1749217841445,-151.0,0.00030071,7]
[364719557,1749217841454,-151.0,0.00030071,7]
[364719559,1749217841463,-151.0,0.00030071,7]
[364719563,1749217841473,-151.0,0.00030071,7]
[364719565,1749217841482,-150.0,0.00030071,7]
[364719568,1749217841491,-4758.84648381,0.00030075,2]
[364719571,1749217841502,-151.0,0.000301,7]
[364719575,1749217841511,-151.0,0.000301,7]
[364719577,1749217841520,-151.0,0.00030115,7]
[364719580,1749217841530,-151.0,0.00030115,7]
[364719583,1749217841539,-151.0,0.00030115,7]
[364719586,1749217841548,-151.0,0.00030115,7]
[364719589,1749217841557,-151.0,0.00030115,7]
[364719592,1749217841566,-151.0,0.00030115,7]
[364719595,1749217841575,-151.0,0.00030115,7]
[364719597,1749217841585,-151.0,0.00030115,7]
[364719599,1749217841597,-4641.7461268,0.0003012,7]
[364719601,1749217841606,-4758.84648381,0.00030135,2]
[364719603,1749217841615,-151.0,0.00030136,7]
[364719605,1749217841625,-151.0,0.00030136,7]
[364719608,1749217841634,-151.0,0.00030136,7]
[364719611,1749217841643,-151.0,0.00030136,7]
[364719614,1749217841652,-151.0,0.00030136,7]
[364719617,1749217841662,-151.0,0.00030136,7]
[364719620,1749217841671,-151.0,0.00030136,7]
[364719623,1749217841680,-151.0,0.00030136,7]
[364719626,1749217841690,-175.03,0.00030137,80]
[364719629,1749217841699,-151.0,0.00030143,7]
[364719632,1749217841709,-151.0,0.00030143,7]
[364719635,1749217841718,-292.729403,0.00030143,7]
[364719638,1749217841728,-151.0,0.00030143,7]
[364719641,1749217841737,-151.0,0.00030143,7]
[364719644,1749217841746,-151.0,0.00030143,7]
[364719647,1749217841755,-151.0,0.00030143,7]
[364719650,1749217841764,-214.0,0.00030144,2]
[364719653,1749217841773,-54663.8534362,0.00030144,2]
[364719656,1749217841783,-151.0,0.00030145,7]
[364719659,1749217841792,-151.0,0.00030145,7]
[364719662,1749217841801,-508.48,0.00030153,7]
[364719665,1749217841811,-508.48,0.00030153,7]
[364719668,1749217841820,-508.48,0.00030153,7]
[364719671,1749217841830,-151.86,0.00030153,2]
[364719674,1749217841844,-500.0,0.00030153,2]
[364719677,1749217841854,-500.0,0.00030153,2]
[364719680,1749217841863,-500.0,0.00030153,2]
[364719683,1749217841872,-500.0,0.00030153,2]